bitfinex/quotes_SOLUSD_20250410
["timestamp","ask_amount","ask_price","bid_price","bid_amount"]
[1744324868585,23.12803823,112.78,112.73,22.48123823]
[1744324868789,45.29503823,112.78,112.73,22.48123823]
[1744324871100,14.26123823,112.76,112.69,8.8734]
[1744324871284,14.26123823,112.75,112.7,22.48123823]
[1744324871603,14.26123823,112.75,112.71,14.26123823]
[1744324872302,8.8699,112.74,112.71,14.26123823]
[1744324873798,8.8699,112.74,112.7,22.48123823]
[1744324874302,14.26123823,112.73,112.68,0.17216157]
[1744324874474,14.26123823,112.73,112.69,14.26123823]
[1744324874978,51.83113823,112.74,112.69,14.26123823]
[1744324875477,51.83113823,112.74,112.7,14.26123823]
[1744324876785,51.83113823,112.74,112.69,14.26123823]
[1744324880487,37.5699,112.74,112.7,14.26123823]
[1744324880703,8.8699,112.74,112.71,14.26123823]
[1744324880908,8.8699,112.74,112.72,14.26123823]
[1744324881090,8.8683,112.76,112.73,14.26123823]
[1744324881809,8.8683,112.76,112.72,22.48123823]
[1744324884011,23.12953823,112.76,112.72,22.48123823]
[1744324884304,8.8683,112.76,112.73,14.26123823]
[1744324886604,8.8683,112.76,112.72,22.48123823]
[1744324887505,45.30043823,112.76,112.72,22.48123823]
[1744324887901,31.0392,112.76,112.72,22.48123823]
[1744324888410,31.0392,112.76,112.72,14.26123823]
[1744324890909,45.30043823,112.76,112.71,22.30123823]
[1744324891214,14.26123823,112.74,112.69,22.30123823]
[1744324891591,14.26123823,112.74,112.69,14.26123823]
[1744324891792,0.28432314,112.75,112.7,14.26123823]
[1744324891999,14.26123823,112.74,112.7,14.26123823]
[1744324896107,8.8707,112.73,112.69,14.26123823]
[1744324896310,8.8707,112.73,112.7,14.26123823]
[1744324899417,31.0475,112.73,112.68,8.07]
[1744324899629,31.0475,112.73,112.69,14.26123823]
[1744324901322,31.0475,112.73,112.68,16.9446]
[1744324901323,8.8707,112.73,112.7,14.26123823]
[1744324902918,8.8683,112.76,112.72,14.26123823]
[1744324903128,8.8683,112.76,112.72,22.30123823]
[1744324903315,8.8679,112.77,112.75,14.26123823]
[1744324903507,0.063,112.79,112.75,14.26123823]
[1744324903702,8.9292,112.79,112.76,14.26123823]
[1744324903910,8.9292,112.79,112.78,14.26123823]
[1744324904314,0.063,112.79,112.78,14.26123823]
[1744324904710,8.929,112.79,112.78,14.26123823]
[1744324905029,0.063,112.79,112.77,14.26123823]
[1744324907326,0.063,112.79,112.78,14.26123823]
[1744324910922,0.063,112.79,112.77,14.26123823]
[1744324911313,0.063,112.79,112.75,35.55864886]
[1744324911520,0.063,112.79,112.77,14.26123823]
[1744324914230,0.063,112.79,112.78,14.26123823]
[1744324919940,0.063,112.79,112.77,14.26123823]
[1744324920548,14.26123823,112.78,112.72,318.3921]
[1744324920751,14.32423823,112.79,112.75,14.26123823]
[1744324921520,8.8668,112.78,112.75,14.26123823]
[1744324922423,8.8668,112.78,112.73,18.79181043]
[1744324922619,8.8668,112.78,112.74,14.26123823]
[1744324922825,8.8668,112.78,112.75,14.26123823]
[1744324924036,8.8668,112.78,112.74,14.26123823]
[1744324927147,45.29503823,112.78,112.74,14.26123823]
[1744324927829,45.29503823,112.78,112.75,14.26123823]
[1744324927830,8.8668,112.78,112.75,14.26123823]
[1744324928328,0.063,112.79,112.77,14.26123823]
[1744324929163,0.063,112.79,112.78,14.26123823]
[1744324934445,0.063,112.79,112.78,23.12803823]
[1744324936751,0.063,112.79,112.78,41.91984866]
[1744324937560,6.7510429,112.83,112.78,41.91984866]
[1744324937761,6.7510429,112.83,112.81,14.26123823]
[1744324940351,0.063,112.84,112.82,14.26123823]
[1744324940558,0.063,112.84,112.83,14.26123823]
[1744324941346,0.063,112.84,112.82,14.26123823]
[1744324941543,0.063,112.84,112.81,14.26123823]
[1744324941753,0.063,112.84,112.8,22.24123823]
[1744324941954,0.063,112.84,112.81,14.26123823]
[1744324943461,0.063,112.84,112.8,14.26123823]
[1744324943840,0.063,112.84,112.81,14.26123823]
[1744324946243,0.063,112.84,112.82,14.26123823]
[1744324948761,0.063,112.84,112.83,14.26123823]
[1744324948975,0.063,112.86,112.83,14.26123823]
[1744324948976,0.063,112.86,112.84,18.79181043]
[1744324949143,0.063,112.86,112.85,14.26123823]
[1744324951671,0.063,112.86,112.84,14.26123823]
[1744324952463,0.063,112.86,112.85,14.26123823]
[1744324956069,0.063,112.86,112.83,22.24123823]
[1744324956781,0.063,112.86,112.83,14.26123823]
[1744324958186,0.063,112.86,112.84,14.26123823]
[1744324958859,0.063,112.86,112.83,14.26123823]
[1744324959476,0.063,112.86,112.85,14.26123823]
[1744324959861,0.063,112.86,112.84,14.26123823]
[1744324960358,0.063,112.86,112.85,14.26123823]
[1744324963100,0.063,112.86,112.84,14.26123823]
[1744324963259,0.063,112.86,112.83,14.26123823]
[1744324963961,0.063,112.86,112.84,14.26123823]
[1744324966192,0.063,112.86,112.82,8.8631]
[1744324966482,0.063,112.86,112.84,14.26123823]
[1744324966864,0.063,112.86,112.85,14.26123823]
[1744324969491,0.063,112.86,112.84,14.26123823]
[1744324980987,0.063,112.86,112.85,14.26123823]
[1744324984388,0.063,112.86,112.85,23.12253823]
[1744324987378,0.063,112.86,112.85,41.91434866]
[1744324989478,0.063,112.86,112.85,42.1986718]
[1744324991303,0.063,112.86,112.85,41.91434866]
[1744324992192,0.063,112.86,112.85,14.26123823]
[1744324992392,0.063,112.86,112.82,27.65541043]
[1744324992591,0.063,112.86,112.84,14.26123823]
[1744324992982,0.063,112.86,112.85,14.26123823]
[1744325008631,0.063,112.86,112.83,7.98]
[1744325008798,0.063,112.86,112.83,22.24123823]
[1744325010219,0.063,112.86,112.84,14.26123823]
[1744325011700,0.063,112.86,112.85,14.26123823]
[1744325013121,0.063,112.86,112.85,23.12253823]
[1744325013819,0.063,112.86,112.85,8.8613]
[1744325014023,0.063,112.86,112.85,23.12253823]
[1744325019339,0.063,112.88,112.87,44.79181043]
[1744325019512,0.063,112.88,112.87,67.03304866]
[1744325021532,0.063,112.88,112.87,75.89274866]
[1744325024042,0.063,112.88,112.87,48.24123823]
[1744325030967,0.063,112.88,112.83,9.00446157]
[1744325031256,0.063,112.88,112.85,14.26123823]
[1744325031628,0.063,112.88,112.86,14.26123823]
[1744325031853,0.063,112.88,112.87,14.26123823]
[1744325040462,0.063,112.88,112.86,14.26123823]
[1744325040670,14.32423823,112.88,112.84,7.98]
[1744325040967,14.32423823,112.88,112.84,22.24123823]
[1744325041342,0.063,112.88,112.84,22.24123823]
[1744325042165,0.063,112.88,112.87,14.26123823]
[1744325042976,0.063,112.88,112.87,23.12093823]
[1744325043448,0.063,112.88,112.87,41.91274866]
[1744325044081,0.063,112.88,112.87,18.79181043]
[1744325044365,0.063,112.88,112.87,41.91274866]
[1744325047441,0.063,112.88,112.87,14.26123823]
[1744325051749,0.063,112.88,112.87,22.22123823]
[1744325052479,0.063,112.88,112.87,14.26123823]
[1744325054880,0.063,112.88,112.86,14.26123823]
[1744325055176,0.063,112.88,112.84,103.22123823]
[1744325055553,0.063,112.88,112.84,22.22123823]
[1744325056371,8.9219,112.88,112.84,22.22123823]
[1744325056758,31.0693,112.88,112.84,22.22123823]
[1744325063176,31.0693,112.88,112.85,14.26123823]
[1744325064273,31.0693,112.88,112.86,0.193006]
[1744325072590,8.9219,112.88,112.86,0.193006]
[1744325072793,8.9219,112.88,112.87,14.26123823]
[1744325075194,0.063,112.88,112.87,14.26123823]
[1744325080795,0.063,112.88,112.86,0.193006]
[1744325081001,0.063,112.88,112.87,14.26123823]
[1744325082504,0.063,112.88,112.86,14.45424423]
[1744325083308,0.063,112.88,112.86,0.193006]
[1744325085403,8.9219,112.88,112.86,0.193006]
[1744325086698,8.9219,112.88,112.86,14.45424423]
[1744325087706,0.063,112.88,112.86,14.45424423]
[1744325088303,0.063,112.88,112.86,0.193006]
[1744325092902,0.063,112.88,112.86,14.45424423]
[1744325093109,0.063,112.88,112.87,14.26123823]
[1744325094215,0.063,112.88,112.87,23.12093823]
[1744325094510,0.063,112.88,112.87,43.12093823]
[1744325096907,0.063,112.88,112.87,61.91274866]
[1744325100695,0.063,112.88,112.87,26.0]
[1744325101017,0.063,112.88,112.86,14.45424423]
[1744325101594,0.063,112.88,112.86,0.193006]
[1744325102006,14.32423823,112.88,112.86,0.193006]
[1744325102697,8.8597,112.87,112.86,0.193006]
[1744325103207,8.9221,112.88,112.86,0.193006]
[1744325104215,8.9221,112.88,112.86,14.45424423]
[1744325104718,0.063,112.88,112.86,14.45424423]
[1744325104912,0.063,112.88,112.86,0.193006]
[1744325105309,14.32423823,112.88,112.86,0.193006]
[1744325106910,0.063,112.88,112.86,0.193006]
[1744325110913,0.063,112.88,112.86,14.45424423]
[1744325111506,0.063,112.88,112.87,14.26123823]
[1744325111699,0.063,112.88,112.87,34.26123823]
[1744325112015,0.063,112.88,112.87,53.05304866]
[1744325112918,0.063,112.88,112.87,61.91274866]
[1744325113118,0.063,112.88,112.87,34.26123823]
[1744325113319,0.063,112.88,112.87,26.0]
[1744325113499,0.063,112.88,112.86,14.45424423]
[1744325115431,0.063,112.88,112.86,0.193006]
[1744325117441,0.063,112.88,112.86,14.45424423]
[1744325118731,0.063,112.88,112.86,0.193006]
[1744325119029,14.26123823,112.87,112.86,0.193006]
[1744325121029,8.8597,112.87,112.86,0.193006]
[1744325123534,14.32423823,112.88,112.86,0.193006]
[1744325124731,8.8597,112.87,112.86,0.193006]
[1744325125613,0.063,112.88,112.86,0.193006]
[1744325125820,8.9219,112.88,112.86,0.193006]
[1744325127733,14.54556137,112.87,112.86,6e-06]
[1744325128434,33.3373718,112.87,112.86,6e-06]
[1744325128633,41.4705718,112.87,112.86,6e-06]
[1744325129133,107.37522472,112.87,112.86,6e-06]
[1744325130338,19.07613357,112.86,112.81,0.063]
[1744325130537,14.54556137,112.82,112.81,0.063]
[1744325131137,42.2009718,112.82,112.81,0.0001]
[1744325131436,43.7771718,112.82,112.81,0.0001]
[1744325132136,24.98536137,112.82,112.81,0.0001]
[1744325132345,8.8636,112.82,112.81,0.0001]
[1744325136942,14.26123823,112.82,112.81,0.0001]
[1744325137548,33.3373718,112.82,112.81,0.0001]
[1744325138942,23.40916137,112.82,112.81,0.0001]
[1744325145064,42.2009718,112.82,112.81,0.0001]
[1744325145236,50.4799718,112.82,112.81,0.0001]
[1744325149257,50.4799718,112.82,112.79,0.0001]
[1744325149258,26.0,112.8,112.79,0.0001]
[1744325149464,90.38232472,112.8,112.79,0.0001]
[1744325149638,19.07613357,112.79,112.76,0.063]
[1744325149829,41.92064866,112.77,112.76,0.063]
[1744325150143,18.79181043,112.76,112.74,0.063]
[1744325150463,33.3373718,112.75,112.74,0.063]
[1744325150659,33.3373718,112.75,112.74,0.0001]
[1744325151234,14.54556137,112.75,112.74,0.0001]
[1744325152767,8.8691,112.75,112.74,0.0001]
[1744325153261,23.13033823,112.75,112.74,0.0001]
[1744325158757,23.41466137,112.75,112.74,0.0001]
[1744325159153,42.2064718,112.75,112.74,0.0001]
[1744325168280,8.8691,112.75,112.74,0.0001]
[1744325169278,23.13033823,112.75,112.74,0.0001]
[1744325169779,23.41466137,112.75,112.74,0.0001]
[1744325172376,42.2064718,112.75,112.74,0.0001]
[1744325173152,99.25142472,112.75,112.74,0.0001]
[1744325173649,42.2064718,112.75,112.74,0.0001]
[1744325186600,0.28432314,112.74,112.72,0.063]
[1744325186789,33.05304866,112.73,112.72,0.063]
[1744325187382,41.92374866,112.73,112.72,0.063]
[1744325187580,8.8707,112.73,112.72,0.063]
[1744325189384,31.0372,112.77,112.72,0.063]
[1744325189584,0.28432314,112.76,112.72,0.063]
[1744325189816,14.26123823,112.75,112.72,1.7119]
[1744325189989,14.54556137,112.76,112.72,1.7119]
[1744325191002,8.8691,112.75,112.72,1.7119]
[1744325192085,23.13033823,112.75,112.72,1.7119]
[1744325192707,8.8691,112.75,112.72,1.7119]
[1744325193408,23.13033823,112.75,112.72,0.063]
[1744325195314,8.8691,112.75,112.72,0.063]
[1744325195915,8.8691,112.75,112.73,15.84413823]
[1744325196410,8.8691,112.75,112.73,1.5829]
[1744325197107,8.8683,112.76,112.73,1.5829]
[1744325198913,8.8683,112.76,112.73,15.84413823]
[1744325199612,8.8683,112.76,112.73,1.5829]
[1744325201621,8.8683,112.76,112.73,15.84413823]
[1744325201912,8.868,112.77,112.73,24.71483823]
[1744325202214,8.868,112.77,112.73,15.84413823]
[1744325203019,23.12923823,112.77,112.73,1.5829]
[1744325203817,23.12923823,112.77,112.73,15.84413823]
[1744325204018,8.868,112.77,112.73,15.84413823]
[1744325205219,8.868,112.77,112.73,24.71483823]
[1744325205808,8.868,112.77,112.74,14.26123823]
[1744325210914,8.8672,112.78,112.75,14.26123823]
[1744325218801,8.8672,112.78,112.76,14.26123823]
[1744325220532,45.29223823,112.79,112.75,20.80763823]
[1744325220828,14.26123823,112.77,112.73,35.84413823]
[1744325221502,14.26123823,112.77,112.73,1.5829]
[1744325221911,14.54556137,112.78,112.73,15.84413823]
[1744325222208,0.28432314,112.78,112.74,14.26123823]
[1744325222624,8.8676,112.77,112.74,14.26123823]
[1744325223309,8.8676,112.77,112.75,14.26123823]
[1744325223514,8.8671,112.78,112.76,14.26123823]
[1744325224930,23.12723823,112.79,112.73,1.5829]
[1744325225125,14.26123823,112.78,112.74,14.26123823]
[1744325227043,8.8676,112.77,112.73,15.84413823]
[1744325228237,8.8676,112.77,112.74,14.26123823]
[1744325230055,45.29503823,112.78,112.73,15.84413823]
[1744325230848,31.0338,112.78,112.73,15.84413823]
[1744325231153,31.0338,112.78,112.74,14.26123823]
[1744325232749,31.0338,112.78,112.73,15.84413823]
[1744325236045,45.29503823,112.78,112.73,14.26123823]
[1744325236248,45.29503823,112.78,112.72,14.32423823]
[1744325237424,14.26123823,112.77,112.72,14.32423823]
[1744325237823,14.26123823,112.75,112.72,0.063]
[1744325238521,14.26123823,112.77,112.72,14.32423823]
[1744325238723,46.87853823,112.78,112.73,14.26123823]
[1744325238951,14.26123823,112.76,112.72,0.063]
[1744325240040,8.8691,112.75,112.72,0.063]
[1744325242653,8.8691,112.75,112.72,14.32423823]
[1744325243548,31.0397,112.76,112.72,14.32423823]
[1744325244050,8.8683,112.76,112.73,14.26123823]
[1744325244231,8.8683,112.76,112.72,14.32423823]
[1744325246652,31.0392,112.76,112.72,14.32423823]
[1744325254257,45.30043823,112.76,112.72,0.063]
[1744325254553,14.54556137,112.75,112.72,0.063]
[1744325255081,45.30043823,112.76,112.72,14.32423823]
[1744325255355,31.0392,112.76,112.73,14.26123823]
[1744325255553,31.0392,112.76,112.72,0.063]
[1744325255748,31.0392,112.76,112.73,14.26123823]
[1744325256883,31.0392,112.76,112.72,14.32423823]
[1744325257982,8.8683,112.76,112.73,14.26123823]
[1744325260679,8.8683,112.76,112.74,14.26123823]
[1744325262191,8.8676,112.77,112.74,14.26123823]
[1744325262359,45.29783823,112.77,112.73,14.26123823]
[1744325262562,31.0366,112.77,112.73,14.26123823]
[1744325263088,31.0366,112.77,112.74,14.26123823]
[1744325263774,31.0366,112.77,112.73,14.26123823]
[1744325266284,8.8676,112.77,112.74,14.26123823]
[1744325266494,8.8671,112.78,112.76,14.26123823]
[1744325266691,8.8664,112.79,112.77,14.26123823]
[1744325266866,8.9282,112.8,112.77,14.26123823]
[1744325269271,8.9282,112.8,112.78,14.26123823]
[1744325270492,8.9282,112.8,112.77,14.26123823]
[1744325270873,8.9282,112.8,112.74,30.4891]
[1744325271080,31.0913,112.8,112.76,14.26123823]
[1744325271476,14.26123823,112.78,112.73,40.26123823]
[1744325271966,33.3373718,112.79,112.74,14.26123823]
[1744325272473,14.26123823,112.78,112.73,14.26123823]
[1744325272797,33.3373718,112.79,112.74,14.26123823]
[1744325273601,33.3373718,112.79,112.75,14.26123823]
[1744325273602,8.8668,112.78,112.75,14.26123823]
[1744325274787,8.8668,112.78,112.76,14.26123823]
[1744325275206,8.8668,112.78,112.75,14.26123823]
[1744325275374,45.29503823,112.78,112.72,0.063]
[1744325275690,45.29503823,112.78,112.74,14.26123823]
[1744325276387,45.29503823,112.78,112.73,14.26123823]
[1744325276687,45.29503823,112.78,112.74,14.26123823]
[1744325277190,45.29503823,112.78,112.73,14.26123823]
[1744325278801,45.29503823,112.78,112.74,14.26123823]
[1744325279096,31.0338,112.78,112.74,14.26123823]
[1744325279483,45.29503823,112.78,112.74,14.26123823]
[1744325279678,45.29503823,112.78,112.73,14.26123823]
[1744325279890,45.29503823,112.78,112.72,0.063]
[1744325280094,45.29503823,112.78,112.73,14.26123823]
[1744325280705,45.29503823,112.78,112.74,14.26123823]
[1744325281088,45.29503823,112.78,112.73,14.26123823]
[1744325281291,16.20766137,112.77,112.72,14.32423823]
[1744325281507,14.26123823,112.75,112.72,0.063]
[1744325281806,14.26123823,112.76,112.72,14.32423823]
[1744325282007,16.20766137,112.77,112.72,14.32423823]
[1744325282492,1.6621,112.77,112.74,14.26123823]
[1744325282804,1.6621,112.77,112.73,14.26123823]
[1744325282983,8.8683,112.76,112.73,14.26123823]
[1744325284212,31.0392,112.76,112.73,14.26123823]
[1744325284410,31.0392,112.76,112.72,14.32423823]
[1744325285508,31.0392,112.76,112.73,14.26123823]
[1744325285810,31.0392,112.76,112.72,0.063]
[1744325286016,31.0392,112.76,112.72,14.32423823]
[1744325286387,31.0392,112.76,112.73,14.26123823]
[1744325288815,31.0392,112.76,112.72,0.063]
[1744325289198,31.0392,112.76,112.73,14.26123823]
[1744325289407,31.0392,112.76,112.72,14.32423823]
[1744325291001,0.28432314,112.75,112.72,0.063]
[1744325291395,8.8699,112.74,112.72,0.063]
[1744325292793,23.13113823,112.74,112.72,0.063]
[1744325293111,1.6144,112.73,112.72,0.063]
[1744325293527,25.03066137,112.73,112.72,0.063]
[1744325295324,0.28432314,112.72,112.71,0.063]
[1744325295823,14.54556137,112.72,112.71,0.063]
[1744325296807,9.15582314,112.72,112.71,0.063]
[1744325297109,23.41706137,112.72,112.71,0.063]
[1744325297327,9.15582314,112.72,112.71,0.063]
[1744325297531,23.41706137,112.72,112.71,0.063]
[1744325300423,8.8715,112.72,112.71,0.063]
[1744325301017,31.046,112.74,112.71,0.063]
[1744325301212,8.8699,112.74,112.71,14.32423823]
[1744325301425,8.8699,112.74,112.72,14.26123823]
[1744325301619,8.8699,112.74,112.73,14.26123823]
[1744325301932,8.8699,112.74,112.72,14.26123823]
[1744325302709,8.8695,112.75,112.72,14.26123823]
[1744325303813,8.8695,112.75,112.71,0.063]
[1744325304016,8.8695,112.75,112.72,14.26123823]
[1744325306834,8.8695,112.75,112.71,0.063]
[1744325307137,8.8695,112.75,112.72,14.26123823]
[1744325309941,8.8695,112.75,112.71,0.063]
[1744325310138,45.30363823,112.75,112.71,0.063]
[1744325310521,45.30363823,112.75,112.71,14.32423823]
[1744325311037,31.0424,112.75,112.71,14.32423823]
[1744325315852,31.0424,112.75,112.71,0.063]
[1744325316025,31.0424,112.75,112.71,14.32423823]
[1744325316750,45.30363823,112.75,112.71,0.063]
[1744325316957,14.26123823,112.72,112.71,0.063]
[1744325317120,14.54556137,112.72,112.71,0.063]
[1744325318938,26.72734396,112.72,112.71,0.0001]
[1744325320448,12.18178259,112.72,112.71,0.0001]
[1744325320844,31.046,112.74,112.71,0.0001]
[1744325321439,3.30944737,112.73,112.72,14.26123823]
[1744325321954,8.8699,112.74,112.72,14.26123823]
[1744325322661,8.8691,112.75,112.72,14.26123823]
[1744325324053,31.042,112.75,112.72,14.26123823]
[1744325324649,8.8691,112.75,112.73,14.26123823]
[1744325325553,8.8683,112.76,112.73,14.26123823]
[1744325325958,0.063,112.77,112.75,14.26123823]
[1744325326255,0.063,112.77,112.76,14.26123823]
[1744325338068,0.063,112.77,112.75,14.26123823]
[1744325341575,0.063,112.77,112.73,7.94]
[1744325341745,0.063,112.77,112.75,14.26123823]
[1744325342555,0.34732314,112.77,112.75,14.26123823]
[1744325342878,0.34732314,112.77,112.73,7.94]
[1744325343173,8.8683,112.76,112.74,14.26123823]
[1744325346164,8.8683,112.76,112.71,7.9401]
[1744325346472,31.0392,112.76,112.72,14.26123823]
[1744325346670,31.0392,112.76,112.73,14.26123823]
[1744325347683,31.0392,112.76,112.72,14.26123823]
[1744325348783,31.0392,112.76,112.73,14.26123823]
[1744325349075,31.0392,112.76,112.71,7.9401]
[1744325349279,31.0392,112.76,112.73,14.26123823]
[1744325351491,8.8683,112.76,112.73,14.26123823]
[1744325351662,8.8683,112.76,112.75,14.26123823]
[1744325351862,8.9306,112.77,112.72,30.4901]
[1744325352080,8.9306,112.77,112.76,14.26123823]
[1744325352987,0.063,112.77,112.76,14.26123823]
[1744325354476,0.063,112.77,112.76,23.12953823]
[1744325354679,0.063,112.77,112.76,43.12953823]
[1744325354883,0.063,112.77,112.76,34.26123823]
[1744325357991,0.063,112.77,112.76,20.0]
[1744325358207,0.063,112.77,112.76,34.26123823]
[1744325362984,0.063,112.77,112.76,43.12953823]
[1744325363597,0.063,112.77,112.76,34.26123823]
[1744325367898,0.063,112.77,112.76,14.26123823]
[1744325368204,0.063,112.77,112.75,22.20123823]
[1744325368391,0.063,112.77,112.75,14.26123823]
[1744325369775,0.063,112.77,112.72,57.22191043]
[1744325370179,0.063,112.77,112.75,14.26123823]
[1744325371006,0.063,112.77,112.76,14.26123823]
[1744325372187,0.063,112.77,112.72,27.94]
[1744325372388,0.063,112.77,112.74,14.26123823]
[1744325373804,8.9306,112.77,112.74,14.26123823]
[1744325374001,45.36083823,112.77,112.73,14.26123823]
[1744325374593,45.36083823,112.77,112.72,14.26123823]
[1744325375214,45.36083823,112.77,112.73,14.26123823]
[1744325379007,1.81492314,112.76,112.71,7.9401]
[1744325379199,1.81492314,112.76,112.72,14.26123823]
[1744325380816,8.8691,112.75,112.73,14.26123823]
[1744325380988,1.5306,112.76,112.74,14.26123823]
[1744325380989,8.8683,112.76,112.74,14.26123823]
[1744325381189,8.8683,112.76,112.75,14.26123823]
[1744325381491,8.8683,112.76,112.74,14.26123823]
[1744325382412,8.8683,112.76,112.72,20.0]
[1744325382722,45.30043823,112.76,112.72,14.26123823]
[1744325382886,31.0392,112.76,112.72,14.26123823]
[1744325383418,31.0392,112.76,112.73,14.26123823]
[1744325384811,31.0392,112.76,112.72,14.26123823]
[1744325385112,22.1709,112.76,112.73,14.26123823]
[1744325385414,22.1709,112.76,112.72,14.26123823]
[1744325387185,31.0392,112.76,112.72,14.26123823]
[1744325387820,31.0392,112.76,112.71,7.9401]
[1744325387996,31.0392,112.76,112.72,14.26123823]
[1744325389703,45.30043823,112.76,112.72,14.26123823]
[1744325390502,45.30043823,112.76,112.71,0.0001]
[1744325390819,45.30043823,112.76,112.72,14.26123823]
[1744325391515,31.0392,112.76,112.72,14.26123823]
[1744325401838,31.0392,112.76,112.73,14.26123823]
[1744325402135,8.8683,112.76,112.73,14.26123823]
[1744325403611,31.38392314,112.77,112.73,14.26123823]
[1744325404430,45.64516137,112.77,112.73,14.26123823]
[1744325405142,31.38392314,112.77,112.73,14.26123823]
[1744325410046,8.9306,112.77,112.75,14.26123823]
[1744325410626,0.063,112.77,112.76,14.26123823]
[1744325412773,0.063,112.77,112.75,22.20123823]
[1744325413514,0.063,112.77,112.75,14.26123823]
[1744325420536,0.063,112.77,112.73,14.26123823]
[1744325421259,14.26123823,112.76,112.71,20.0001]
[1744325421447,14.26123823,112.75,112.71,0.0001]
[1744325422445,8.8699,112.74,112.71,0.0001]
[1744325423852,8.8699,112.74,112.71,14.26133823]
[1744325426173,31.0432,112.75,112.71,14.26133823]
[1744325432380,31.0432,112.75,112.72,14.26123823]
[1744325432551,31.0432,112.75,112.73,14.26123823]
[1744325432552,8.8691,112.75,112.73,14.26123823]
[1744325432876,0.063,112.77,112.74,14.26123823]
[1744325433176,0.063,112.77,112.75,14.26123823]
[1744325433668,0.063,112.77,112.74,14.26123823]
[1744325433843,8.9309,112.77,112.74,14.26123823]
[1744325434167,8.9309,112.77,112.75,14.26123823]
[1744325438465,0.063,112.77,112.75,14.26123823]
[1744325439047,0.063,112.77,112.74,14.26123823]
[1744325439247,0.063,112.77,112.75,14.26123823]
[1744325441262,0.063,112.77,112.76,14.26123823]
[1744325444866,0.063,112.77,112.73,20.0]
[1744325445071,0.063,112.77,112.74,14.26123823]
[1744325445568,0.063,112.77,112.75,14.26123823]
[1744325446962,0.063,112.77,112.74,14.26123823]
[1744325447170,14.26123823,112.76,112.71,0.0001]
[1744325447350,14.26123823,112.76,112.72,14.26123823]
[1744325447808,14.60856137,112.77,112.71,0.0001]
[1744325448080,14.26123823,112.73,112.71,0.0001]
[1744325448283,14.54556137,112.72,112.71,0.0001]
[1744325448657,23.41706137,112.72,112.71,0.0001]
[1744325449367,8.8715,112.72,112.71,0.0001]
[1744325451792,23.41706137,112.72,112.71,0.0001]
[1744325453693,42.2088718,112.72,112.71,0.0001]
[1744325453860,26.0,112.7,112.69,0.0001]
[1744325454066,40.26123823,112.7,112.69,0.0001]
[1744325454796,14.26123823,112.7,112.69,0.0001]
[1744325455491,40.26123823,112.7,112.69,0.0001]
[1744325455991,23.13433823,112.7,112.69,0.0001]
[1744325456191,8.8731,112.7,112.69,0.0001]
[1744325456393,8.8731,112.7,112.69,14.26133823]
[1744325457893,31.0503,112.72,112.69,14.26133823]
[1744325458894,8.8715,112.72,112.69,14.26133823]
[1744325459065,15.92753823,112.73,112.71,14.26123823]
[1744325459066,8.871,112.73,112.71,14.26123823]
[1744325459883,31.0456,112.74,112.7,14.26123823]
[1744325460497,8.8699,112.74,112.72,14.26123823]
[1744325460698,8.8699,112.74,112.73,14.26123823]
[1744325460871,8.8685,112.76,112.73,14.26123823]
[1744325461071,8.8685,112.76,112.75,14.26123823]
[1744325462072,22.45222314,112.78,112.75,14.26123823]
[1744325462073,8.9306,112.77,112.75,14.26123823]
[1744325464276,0.063,112.77,112.75,14.26123823]
[1744325464591,0.063,112.77,112.76,14.26123823]
[1744325468798,0.063,112.77,112.74,27.94]
[1744325468979,0.063,112.77,112.75,14.26123823]
[1744325470099,0.063,112.77,112.76,14.26123823]
[1744325473308,0.063,112.77,112.74,14.26123823]
[1744325473487,0.063,112.77,112.73,14.26123823]
[1744325475202,8.9306,112.77,112.73,14.26123823]
[1744325475410,8.9306,112.77,112.74,14.26123823]
[1744325477610,0.063,112.77,112.74,14.26123823]
[1744325479203,0.063,112.77,112.75,14.26123823]